{"text_format":"1","workbook":"xlsx","n_sheets":1,"sheets":["учр дополнительного образования"],"not_rendered":{"charts":0,"images":0,"macros":0,"external_links":0,"defined_names":2,"comments":0,"pivot_tables":0},"unopened":[],"bounds":{"document_bytes":16777216,"sheet_cells":100000,"rows_first":2000,"rows_last":500,"rows_between":2000,"halvings":0,"cell_chars":16384,"cell_head_chars":4096},"cells_cut":0,"cells_raw":0,"read":"whole","date_system":"1900"}

{"sheet":"учр дополнительного образования","index":0,"n_rows":85,"n_cols":11,"rows_kept":85,"cut":false,"hidden":false,"merged":[[10,0,11,0],[3,0,3,8],[53,0,54,0],[8,0,9,0],[46,0,47,0],[44,0,45,0],[36,0,37,0],[48,0,49,0],[42,0,43,0],[16,0,17,0],[18,0,19,0],[74,0,74,8],[14,0,15,0],[40,0,41,0],[72,5,72,8],[50,0,51,0],[21,10,25,10],[22,0,23,0],[24,0,25,0],[30,0,31,0],[32,0,33,0],[38,0,39,0],[7,10,20,10],[7,0,7,9],[26,10,66,10],[28,0,29,0],[60,0,61,0],[12,0,13,0],[62,0,63,0],[20,0,21,0],[57,0,58,0],[34,0,35,0]]}
[null,null,null,null,null,"Приложение 3 "]
[null,null,null,null,null,"к акту от 26.03.2014"]
[]
["Результаты контроля за исполнением муниципального задания\n муниципальным бюджетным и автономным образовательным учреждениям дополнительного образования детей,\nподведомственным департаменту образования Администрации города, в 2013 году"]
[]
["    Наименование показателя    ","Плановое значение показателя установлено / исполнено","n-2 год*","n-1 год*","МБОУ ДОД СЮН","МБОУ ДОД \"СЮТ\""," МБОУ ДОД ЦДНТТ \"Информатика +\"","МБОУ ДОД \"ЦДТ\"","МАОУДОДДОО ЦП  \"Дельфин\"",null,"Примечание"]
["Общие требования к деятельности муниципального учреждения по оказанию муниципальных услуг"]
["Соблюдение норм законодательства Российской Федерации, Ханты-Мансийского автономного округа - Югры, муниципальных правовых актов города Сургута в части, касающейся деятельности муниципального учреждения по оказанию муниципальных услуг"]
["1. Количество предъявленных исковых требований         ","устан.",null,null,1,1,1,1,1,{"$f":"SUM(E9:I9)","v":5}]
[null,"исполн.",null,null,1,1,1,1,1,{"$f":"SUM(E10:I10)","v":5}]
[]
[]
["2. Количество пунктов предписаний со стороны контрольных и надзорных органов исполнительной власти за нарушения организационного характера     ","устан.",null,null,1,1,1,1,1,5]
[null,"исполн.",null,null,1,1,1,1,1,5]
["3. Количество и объем штрафных санкций со стороны контрольных и надзорных органов исполнительной власти,                          ","устан.",null,null,1,1,1,1,1,5]
[null,"исполн.",null,null,1,1,1,1,1,5]
["из них за нарушения организационного характера     ","устан.",null,null,1,1,1,1,1,5]
[null,"исполн.",null,null,1,1,1,1,1,5]
["4. Количество выявленных нарушений в актах проверок деятельности на предмет соответствия его деятельности нормам законодательства ","устан.",null,null,1,1,1,1,1,5]
[null,"исполн.",null,null,1,0,1,1,0,3]
["5. Количество выявленных фактов принятия денежных обязательств, не обеспеченных источниками финансирования               ","устан.",null,null,1,1,1,1,1,5]
[null,"исполн.",null,null,1,1,1,1,1,5]
["6. Количество требований со стороны третьих лиц по выполнению принятых денежных обязательств, не обеспеченных источниками финансирования (либо число требований со стороны третьих лиц, размер предъявленных требований в части, не обеспеченной источниками финансирования)","устан.",null,null,1,1,1,1,1,5]
[null,"исполн.",null,null,1,1,1,1,1,5]
["7. Количество выявленных фактов финансирования расходов по денежным обязательствам, не обеспеченным источниками финансирования (либо число выявленных фактов, объем расходов по денежным обязательствам, не обеспеченным источниками финансирования)","устан.",null,null,1,1,1,1,1,5]
[null,"исполн.",null,null,1,1,1,1,1,5]
["Муниципальная услуга «Дополнительное образование в учреждениях дополнительного образования детей»",null,null,null,null,null,null,null,null,null,{"$f":"(1211-870-7)/(1218-876)*100","v":97.7}]
["Показатели, характеризующие качество оказания муниципальной услуги:"]
["Количество подтвержденных жалоб потребителей на нарушение стандарта качества оказания муниципальной услуги","устан.",null,null,1,1,1,1,1,5]
[null,"исполн.",null,null,1,1,1,1,1,5]
["Общая укомплектованность работниками (с учетом внутреннего и внешнего совместительства)","устан.",null,null,1,1,1,1,1,5]
[null,"исполн.",null,null,"1 1  ",0,0,"1 1  ","1 1  ",0]
["Укомплектованность штатными педагогическими работниками (без учета внешнего совместительства), не менее","устан.",null,null,1,1,1,1,1,5]
[null,"исполн.",null,null,1,1,1,1,1,5]
["Доля педагогических и руководящих работников,  имеющих первую и высшую квалификационные категории, в общей численности педагогических и руководящих работников (с учетом внутреннего и внешнего совместительства), не менее","устан.",null,null,1,1,1,1,1,5]
[null,"исполн.",null,null,1,1,1,1,1,5]
["Укомплектованность групп дополнительного образования","устан.",null,null,1,1,1,1,1,5]
[null,"исполн.",null,null,1,1,1,1,1,5]
["Полнота выполнения программ дополнительного образования детей","устан.",null,null,1,1,1,1,1,5]
[null,"исполн.",null,null,1,1,1,1,1,5]
["Доля обучающихся, завершивших обучение по итогам учебного года","устан.",null,null,1,1,1,1,1,5]
[null,"исполн.",null,null,1,1,1,1,1,5]
["Количество реализуемых программ дополнительного образования детей","устан.",null,null,1,1,1,1,1,5]
[null,"исполн.",null,null,1,1,1,1,1,5]
["Организация участия обучающихся в выездных мероприятиях, конкурсах, соревнованиях, не менее","устан.",null,null,1,1,null,1,1,4]
[null,"исполн.",null,null,1,1,null,1,1,4]
["Количество проведенных общегородских мероприятий (кроме мероприятий в рамках летней оздоровительной кампании), не менее","устан.",null,null,1,1,1,1,1,5]
[null,"исполн.",null,null,1,1,1,1,1,5]
["Количество городских мероприятий, проведенных в рамках летней оздоровительной кампании с участием не менее 5 лагерей с дневным пребыванием детей, не менее","устан.",null,null,1,1,null,1,1,4]
[null,"исполн.",null,null,1,1,null,1,1,4]
["Количество мероприятий, проведенных на территории лагеря с дневным пребыванием детей, не менее","устан.",null,null,1,1,1,1,null,4]
[null,"исполн.",null,null,1,1,1,1,null,4]
["Показатели, характеризующие объем муниципальной услуги"]
["Численность обучающихся, получающих муниципальную услугу  ","устан.",null,null,1,1,1,1,1,5]
[null,"исполн.",null,null,1,1,1,1,0,4]
["Муниципальная услуга «Организация и обеспечение отдыха и оздоровления детей»"]
["Показатели, характеризующие качество оказания муниципальной услуги:"]
["Количество подтвержденных жалоб потребителей на нарушение стандарта качества оказания муниципальной услуги","устан.",null,null,1,1,1,1,1,5]
[null,"исполн.",null,null,1,1,1,1,1,5]
["Показатели, характеризующие объем муниципальной услуги"]
["Численность детей, получающих муниципальную услугу в оздоровительных лагерях с дневным пребыванием детей ","устан.",null,null,null,null,null,null,1,1]
[null,"исполн.",null,null,null,null,null,null,1,1]
["Численность детей, получающих муниципальную услугу в рамках выездных и тематических программ (проектов)","устан.",null,null,null,null,null,1,1,2]
[null,"исполн.",null,null,null,null,null,1,1,2]
["общее число показателей, по которым установлено муниципальное задание",null,null,null,{"$f":"E9+E11+E13+E15+E17+E19+E21+E23+E25+E29+E31+E33+E35+E37+E39+E41+E43+E45+E47+E49+E51+E54+E58+E61+E63","v":22},{"$f":"F9+F11+F13+F15+F17+F19+F21+F23+F25+F29+F31+F33+F35+F37+F39+F41+F43+F45+F47+F49+F51+F54+F58+F61+F63","v":22},{"$f":"G9+G11+G13+G15+G17+G19+G21+G23+G25+G29+G31+G33+G35+G37+G39+G41+G43+G45+G47+G49+G51+G54+G58+G61+G63","v":20},{"$f":"H9+H11+H13+H15+H17+H19+H21+H23+H25+H29+H31+H33+H35+H37+H39+H41+H43+H45+H47+H49+H51+H54+H58+H61+H63","v":23},{"$f":"I9+I11+I13+I15+I17+I19+I21+I23+I25+I29+I31+I33+I35+I37+I39+I41+I43+I45+I47+I49+I51+I54+I58+I61+I63","v":23},110]
["число показателей, по которым исполнено муниципальное задание (в том числе признано исполненым с учетом объективных факторов)",null,null,null,{"$f":"E10+E12+E14+E16+E18+E20+E22+E24+E26+E30+1+E34+E36+E38+E40+E42+E44+E46+E48+E50+E52+E55+E59+E62+E64","v":22},{"$f":"F10+F12+F14+F16+F18+F20+F22+F24+F26+F30+F32+F34+F36+F38+F40+F42+F44+F46+F48+F50+F52+F55+F59+F62+F64","v":20},{"$f":"G10+G12+G14+G16+G18+G20+G22+G24+G26+G30+G32+G34+G36+G38+G40+G42+G44+G46+G48+G50+G52+G55+G59+G62+G64","v":19},{"$f":"H10+H12+H14+H16+H18+H20+H22+H24+H26+H30+1+H34+H36+H38+H40+H42+H44+H46+H48+H50+H52+H55+H59+H62+H64","v":23},{"$f":"I10+I12+I14+I16+I18+I20+I22+I24+I26+I30+1+I34+I36+I38+I40+I42+I44+I46+I48+I50+I52+I55+I59+I62+I64","v":21},105]
["доля показателей, по которым исполнено муниципальное задание, в общем числе установленных показателей",null,null,null,{"$f":"E66/E65*100","v":100},91,95,100,91,95]
["ПРОЦЕНТ ИСПОЛНЕНИЯ МУНИЦИПАЛЬНОГО ЗАДАНИЯ:\n\"исполнено\" - 100% \"не исполнено\" - 0%",null,null,null,100,100,100,100,100,{"$f":"SUM(E68:I68)","v":500}]
[]
[]
["Условные обозначения:",null,null,null,1,"\"да\""]
[null,null,null,null,0,"\"нет\""]
[null,null,null,null,null,"плановое значение \nне устанавливалось"]
[]
["1 1   - объективный фактор (причина, позволившая считать показатель исполненным при фактическом исполнении менее 95%) - с учетом внутреннего и внешнего совместительства, совмещения, расширения зон обслуживания, фактической потребности в кадрах в летний период, укомплектованность составила более 95%. Наличие вакансий педагогических кадров не повлияло на качество и полноту реализации образовательных программ."]
[]
["______________ А.Н. Томазова","______________ Е.А. Рубекина"]
[]
["______________ Е.В. Коркунова","______________ Э.Х. Болдырева"]
[]
["______________ Е.Е. Гапонова","______________ Е.Ф. Рычапова"]
[]
["______________ Е.М. Харева","______________ Л.Г. Соловей"]
[]
["______________ И.В. Толстова"]